fUST/lending_fUST_20260502
["ID","MTS","AMOUNT","RATE_DAILY","PERIOD"]
[421457268,1777699838000,-279.74847426,0.00011013,2]
[421457313,1777699838000,-500.0,0.00012644,2]
[421457291,1777699838000,-2150.738,0.00012592,2]
[421457319,1777699838000,-500.0,0.00012644,2]
[421457295,1777699838000,-151.272028,0.000126,2]
[421457304,1777699838000,-501.73950661,0.00012644,2]
[421457306,1777699838000,-500.0,0.00012644,2]
[421457350,1777699838000,-500.0,0.00012644,2]
[421457347,1777699838000,-315.09692771,0.00012644,2]
[421457348,1777699838000,-500.0,0.00012644,2]
[421457345,1777699838000,-500.0,0.00012644,2]
[421457332,1777699838000,-500.0,0.00012644,2]
[421457341,1777699838000,-500.0,0.00012644,2]
[421457330,1777699838000,-500.0,0.00012644,2]
[421457337,1777699838000,-543.57415697,0.00012644,2]
[421457334,1777699838000,-500.0,0.00012644,2]
[421457339,1777699838000,-500.0,0.00012644,2]
[421457343,1777699838000,-500.0,0.00012644,2]
[421457335,1777699838000,-500.0,0.00012644,2]
[421457324,1777699838000,-500.0,0.00012644,2]
[421457326,1777699838000,-500.0,0.00012644,2]
[421457322,1777699838000,-500.0,0.00012644,2]
[421457352,1777699838000,-76533.05217761,0.00012645,2]
[421457317,1777699838000,-500.0,0.00012644,2]
[421457310,1777699838000,-500.0,0.00012644,2]
[421457302,1777699838000,-500.0,0.00012644,2]
[421457321,1777699838000,-500.0,0.00012644,2]
[421457308,1777699838000,-500.0,0.00012644,2]
[421457328,1777699838000,-500.0,0.00012644,2]
[421457614,1777699846000,-4831.8407337,0.00012474,2]
[421457615,1777699846000,-168.1592663,0.00012474,2]
[421457617,1777699846000,-126887.45226799,0.00012645,2]
[421457616,1777699846000,-151.0,0.000126,2]
[421457618,1777699847000,-1686.41054589,0.00012645,2]
[421457619,1777699873000,-1126.31004252,0.0001,10]
[421457621,1777699916000,1000.008,0.00021918,120]
[421457627,1777701003000,166.3916627,0.00021899,120]
[421457633,1777701032000,-70.29338463,9.656e-05,2]
[421457632,1777701032000,-553.0,9.51e-05,2]
[421457631,1777701032000,-328.06296408,9.415e-05,2]
[421457690,1777701046000,-3726.0053835,0.0001,10]
[421457693,1777701046000,-300.0,0.00011999,2]
[421457689,1777701046000,-206.86012014,9.656e-05,2]
[421457694,1777701046000,-13233.91977548,0.00012,2]
[421457691,1777701046000,-159.0,0.00011,2]
[421457692,1777701046000,-327.04113563,0.00011656,2]
[421457749,1777702232000,-265.7305315,0.0001099,2]
[421457742,1777702232000,-903.85434775,0.0001099,2]
[421457888,1777702238000,-300.0,0.00011213,2]
[421457887,1777702238000,-275.68961196,0.00011102,2]
[421457885,1777702238000,-574.0,0.0001099,2]
[421457883,1777702238000,-3830.41512075,0.0001099,2]
[421457931,1777702239000,-500.0,0.00012188,2]
[421457926,1777702239000,-239.54857142,0.00012188,2]
[421457929,1777702239000,-500.0,0.00012188,2]
[421457933,1777702239000,-500.0,0.00012188,2]
[421457935,1777702239000,-500.0,0.00012188,2]
[421457937,1777702239000,-500.0,0.00012188,2]
[421457939,1777702239000,-500.0,0.00012188,2]
[421457947,1777702239000,-500.0,0.00012188,2]
[421457950,1777702239000,-512.27862692,0.00012188,2]
[421457924,1777702239000,-500.0,0.00012188,2]
[421457954,1777702239000,-500.0,0.00012188,2]
[421457943,1777702239000,-500.0,0.00012188,2]
[421457952,1777702239000,-500.0,0.00012188,2]
[421457948,1777702239000,-154.14549268,0.00012188,2]
[421457928,1777702239000,-500.0,0.00012188,2]
[421457915,1777702239000,-500.0,0.00012188,2]
[421457913,1777702239000,-500.0,0.00012188,2]
[421457899,1777702239000,-159.0,0.00012,2]
[421457945,1777702239000,-500.0,0.00012188,2]
[421457901,1777702239000,-257.36,0.00012017,2]
[421457894,1777702239000,-300.0,0.00011213,2]
[421457890,1777702239000,-300.0,0.00011213,2]
[421457903,1777702239000,-2141.7072141,0.00012032,2]
[421457921,1777702239000,-500.0,0.00012188,2]
[421457892,1777702239000,-300.0,0.00011213,2]
[421457896,1777702239000,-1200.0,0.00011213,2]
[421457898,1777702239000,-25996.18429912,0.00012,2]
[421457911,1777702239000,-500.0,0.00012188,2]
[421457909,1777702239000,-1478.4236351,0.00012188,2]
[421457919,1777702239000,-500.0,0.00012188,2]
[421457917,1777702239000,-500.0,0.00012188,2]
[421457907,1777702239000,-4208.62220031,0.00012132,2]
[421457941,1777702239000,-517.54592243,0.00012188,2]
[421457992,1777702239000,-192.48852995,0.00012189,2]
[421457957,1777702239000,-500.0,0.00012188,2]
[421457955,1777702239000,-500.0,0.00012188,2]
[421457991,1777702239000,-500.0,0.00012189,2]
[421457993,1777702239000,-3937.35953525,0.0001219,2]
[421457994,1777702239000,-9919.30233937,0.0001219,2]
[421457990,1777702239000,-500.0,0.00012188,2]
[421457989,1777702239000,-500.0,0.00012188,2]
[421457988,1777702239000,-500.0,0.00012188,2]
[421457987,1777702239000,-500.0,0.00012188,2]
[421457985,1777702239000,-500.0,0.00012188,2]
[421457984,1777702239000,-500.0,0.00012188,2]
[421457986,1777702239000,-500.0,0.00012188,2]
[421457983,1777702239000,-500.0,0.00012188,2]
[421457981,1777702239000,-500.0,0.00012188,2]
[421457979,1777702239000,-500.0,0.00012188,2]
[421457980,1777702239000,-500.0,0.00012188,2]
[421457982,1777702239000,-500.0,0.00012188,2]
[421457976,1777702239000,-500.0,0.00012188,2]
[421457959,1777702239000,-185.5797226,0.00012188,2]
[421457961,1777702239000,-500.0,0.00012188,2]
[421457978,1777702239000,-500.0,0.00012188,2]
[421457970,1777702239000,-500.0,0.00012188,2]
[421457972,1777702239000,-632.33184781,0.00012188,2]
[421457971,1777702239000,-500.0,0.00012188,2]
[421457973,1777702239000,-500.0,0.00012188,2]
[421457960,1777702239000,-500.0,0.00012188,2]
[421457969,1777702239000,-500.0,0.00012188,2]
[421457963,1777702239000,-500.0,0.00012188,2]
[421457977,1777702239000,-500.0,0.00012188,2]
[421457965,1777702239000,-500.0,0.00012188,2]
[421457974,1777702239000,-500.0,0.00012188,2]
[421457975,1777702239000,-500.0,0.00012188,2]
[421457967,1777702239000,-500.0,0.00012188,2]
[421458199,1777702243000,-1178.250759,0.0001219,2]
[421458198,1777702243000,-438.87021569,0.0001219,2]
[421458221,1777702246000,-390.49575964,0.0001219,2]
[421458222,1777702247000,-4561.12978431,0.0001219,2]
[421458223,1777702397000,300.0,0.00010134,30]
[421458275,1777703431000,-577.0,0.00011202,2]
[421458277,1777703431000,-285.41581972,0.00011507,2]
[421458281,1777703431000,-500.0,0.00011978,2]
[421458279,1777703431000,-1465.95650659,0.00011918,2]
[421458283,1777703431000,-1200.0,0.00012061,2]
[421458273,1777703431000,-604.25309705,0.00011202,2]
[421458297,1777703431000,-930.35458837,0.00012096,2]
[421458289,1777703431000,-300.0,0.00012085,2]
[421458284,1777703431000,-3845.3591128,0.00012062,2]
[421458299,1777703431000,-1.49804108,0.00012155,2]
[421458287,1777703431000,-300.0,0.00012085,2]
[421458293,1777703431000,-92.97740367,0.00012096,2]
[421458291,1777703431000,-300.0,0.00012085,2]
[421458310,1777703431000,-604.25309705,0.00012155,2]
[421458285,1777703431000,-255.0,0.00012085,2]
[421458404,1777703438000,-500.0,0.00012196,2]
[421458413,1777703438000,-500.0,0.00012196,2]
[421458417,1777703438000,-151.5,0.00012196,2]
[421458419,1777703438000,-500.0,0.00012196,2]
[421458420,1777703438000,-151.5,0.00012196,2]
[421458422,1777703438000,-514.40254954,0.00012196,2]
[421458432,1777703438000,-641.0,0.00012196,2]
[421458412,1777703438000,-151.5,0.00012196,2]
[421458433,1777703438000,-641.0,0.00012196,2]
[421458434,1777703438000,-641.0,0.00012196,2]
[421458435,1777703438000,-641.0,0.00012196,2]
[421458431,1777703438000,-158.2713826,0.00012196,2]
[421458398,1777703438000,-2150.738,0.00012192,2]
[421458409,1777703438000,-500.0,0.00012196,2]
[421458396,1777703438000,-537.6845,0.00012192,2]
[421458400,1777703438000,-500.0,0.00012196,2]
[421458402,1777703438000,-500.0,0.00012196,2]
[421458407,1777703438000,-500.0,0.00012196,2]
[421458405,1777703438000,-500.0,0.00012196,2]
[421458395,1777703438000,-940.59445866,0.00012192,2]
[421458425,1777703438000,-151.5,0.00012196,2]
[421458393,1777703438000,-1017.26154134,0.00012192,2]
[421458391,1777703438000,-1182.73890805,0.00012156,2]
[421458387,1777703438000,-1182.73890805,0.00012156,2]
[421458385,1777703438000,-1182.73890805,0.00012155,2]
[421458383,1777703438000,-576.98776995,0.00012155,2]
[421458389,1777703438000,-1182.73890805,0.00012156,2]
[421458415,1777703438000,-500.0,0.00012196,2]
[421458424,1777703438000,-500.0,0.00012196,2]
[421458468,1777703438000,-641.0,0.00012196,2]
[421458429,1777703438000,-475.03801372,0.00012196,2]
[421458428,1777703438000,-151.5,0.00012196,2]
[421458482,1777703438000,-8.03748454,0.00012196,2]
[421458470,1777703438000,-649.92441035,0.00012196,2]
[421458478,1777703438000,-384.05813332,0.00012196,2]
[421458465,1777703438000,-641.0,0.00012196,2]
[421458480,1777703438000,-151.5,0.00012196,2]
[421458476,1777703438000,-115.94186668,0.00012196,2]
[421458461,1777703438000,-641.0,0.00012196,2]
[421458463,1777703438000,-641.0,0.00012196,2]
[421458472,1777703438000,-500.0,0.00012196,2]
[421458474,1777703438000,-199.69703589,0.00012196,2]
[421458459,1777703438000,-641.0,0.00012196,2]
[421458446,1777703438000,-641.0,0.00012196,2]
[421458467,1777703438000,-641.0,0.00012196,2]
[421458444,1777703438000,-641.0,0.00012196,2]
[421458427,1777703438000,-641.0,0.00012196,2]
[421458426,1777703438000,-500.0,0.00012196,2]
[421458430,1777703438000,-641.0,0.00012196,2]
[421458452,1777703438000,-641.0,0.00012196,2]
[421458436,1777703438000,-641.0,0.00012196,2]
[421458438,1777703438000,-641.0,0.00012196,2]
[421458448,1777703438000,-641.0,0.00012196,2]
[421458454,1777703438000,-641.0,0.00012196,2]
[421458443,1777703438000,-641.0,0.00012196,2]
[421458440,1777703438000,-152.90976372,0.00012196,2]
[421458450,1777703438000,-641.0,0.00012196,2]
[421458455,1777703438000,-641.0,0.00012196,2]
[421458457,1777703438000,-641.0,0.00012196,2]
[421458894,1777703446000,-300.0,0.00012196,2]
[421458899,1777703473000,-1126.31004252,0.0001,10]
[421458901,1777703987000,157.45,9.921e-05,30]
[421458902,1777704215000,175.34613912,0.00021918,120]
[421458903,1777704231000,365.0,0.000218,120]
[421458908,1777704542000,4401.90997453,0.000219,120]
[421458909,1777704631000,-403.92061537,9.601e-05,2]
[421459033,1777704638000,-983.59412008,9.601e-05,2]
[421459046,1777704640000,-3825.77379174,9.998e-05,2]
[421459044,1777704640000,-1200.0,9.697e-05,2]
[421459045,1777704640000,-283.78750333,9.747e-05,2]
[421459043,1777704640000,-300.0,9.697e-05,2]
[421459042,1777704640000,-554.0,9.601e-05,2]
[421459041,1777704640000,-1921.07517574,9.601e-05,2]
[421459040,1777704640000,-1691.41008881,9.601e-05,2]
[421459077,1777704646000,-500.0,9.999e-05,2]
[421459075,1777704646000,-10118.90643676,9.998e-05,2]
[421459078,1777704646000,-500.0,9.999e-05,2]
[421459081,1777704646000,-500.0,9.999e-05,2]
[421459076,1777704646000,-500.0,9.999e-05,2]
[421459074,1777704646000,-6607.3197715,9.998e-05,2]
[421459079,1777704646000,-191.47935829,9.999e-05,2]
[421459082,1777704646000,-500.0,9.999e-05,2]
[421459091,1777704646000,-77796.67323154,0.0001,2]
[421459088,1777704646000,-500.0,9.999e-05,2]
[421459083,1777704646000,-500.0,9.999e-05,2]
[421459087,1777704646000,-197.302626,9.999e-05,2]
[421459086,1777704646000,-591.71314027,9.999e-05,2]
[421459084,1777704646000,-500.0,9.999e-05,2]
[421459089,1777704646000,-500.0,9.999e-05,2]
[421459085,1777704646000,-500.0,9.999e-05,2]
[421459090,1777704646000,-413.15344929,9.999e-05,2]
[421459080,1777704646000,-500.0,9.999e-05,2]
[421459093,1777705013000,192.81385528,0.00018204,120]
[421459167,1777705832000,-300.0,0.00010199,2]
[421459165,1777705832000,-300.0,0.00010199,2]
[421459164,1777705832000,-300.0,0.00010199,2]
[421459162,1777705832000,-187.41871153,9.999e-05,2]
[421459154,1777705832000,-293.35175326,9.458e-05,2]
[421459157,1777705832000,-300.0,9.997e-05,2]
[421459152,1777705832000,-551.0,9.363e-05,2]
[421459156,1777705832000,-294.0,9.997e-05,2]
[421459159,1777705832000,-1200.0,9.997e-05,2]
[421459161,1777705832000,-424.492,9.999e-05,2]
[421459145,1777705832000,-4158.64247836,9.363e-05,2]
[421459143,1777705832000,-841.35752164,9.363e-05,2]
[421459163,1777705832000,-34203.32676846,0.0001,2]
[421459178,1777705832000,-300.0,0.00010199,2]
[421459166,1777705832000,-300.0,0.00010199,2]
[421459184,1777705832000,-6767.0447416,0.00010913,2]
[421459182,1777705832000,-157.01704992,0.00010912,2]
[421459177,1777705832000,-300.0,0.00010199,2]
[421459183,1777705832000,-410.16437314,0.00010912,2]
[421459180,1777705832000,-3928.52748702,0.00010713,2]
[421459181,1777705832000,-9735.35080499,0.00010813,2]
[421459179,1777705832000,-600.0,0.00010199,2]
[421459175,1777705832000,-300.0,0.00010199,2]
[421459170,1777705832000,-300.0,0.00010199,2]
[421459174,1777705832000,-300.0,0.00010199,2]
[421459176,1777705832000,-300.0,0.00010199,2]
[421459169,1777705832000,-300.0,0.00010199,2]
[421459171,1777705832000,-300.0,0.00010199,2]
[421459168,1777705832000,-300.0,0.00010199,2]
[421459172,1777705832000,-300.0,0.00010199,2]
[421459173,1777705832000,-300.0,0.00010199,2]
[421459318,1777705839000,-4751.76605281,0.00010913,2]
[421459317,1777705839000,-1215.57940136,0.00010804,2]
[421459366,1777705843000,-256.2,0.00010913,2]
[421459377,1777705843000,-473.64357049,0.00010913,2]
[421459381,1777705843000,-346.35642951,0.00010997,2]
[421459384,1777705843000,-3236.96397383,0.00011013,2]
[421459379,1777705843000,-420.0,0.00010997,2]
[421459383,1777705843000,-133.64357049,0.00010997,2]
[421459591,1777705846000,-6455.12736062,0.00011013,2]
[421459596,1777706147000,10000.0,0.00021918,120]
[421459604,1777706770000,156.14041802,0.00018341,120]
[421459682,1777707032000,-300.0,9.665e-05,2]
[421459684,1777707032000,-300.0,9.665e-05,2]
[421459686,1777707032000,-1200.0,9.665e-05,2]
[421459688,1777707032000,-2808.03722137,9.666e-05,2]
[421459690,1777707032000,-269.08724583,9.666e-05,2]
[421459857,1777707039000,-92.43270355,9.764e-05,2]
[421459855,1777707039000,-296.1847182,9.715e-05,2]
[421459853,1777707039000,-555.0,9.666e-05,2]
[421459873,1777707039000,-2476.44683197,9.764e-05,2]
[421459875,1777707039000,-420.0,0.00010632,2]
[421459851,1777707039000,-1922.8755328,9.666e-05,2]
[421459877,1777707039000,-210.04207293,0.00010912,2]
[421459887,1777707039000,-377.6284794,0.00010959,2]
[421459892,1777707039000,-5850.08278851,0.00011013,2]
[421459894,1777707039000,-388.344,0.00011013,2]
[421459896,1777707039000,-6176.06098435,0.00011113,2]
[421459871,1777707039000,-1515.15768585,9.764e-05,2]
[421460056,1777707047000,-270.92770478,0.00011113,2]
[421460059,1777707073000,-1126.31004252,0.0001,10]
[421460112,1777708232000,-2515.37887852,9.194e-05,2]
[421460121,1777708232000,-207.14179819,9.287e-05,2]
[421460119,1777708232000,-997.0888231,9.194e-05,2]
[421460296,1777708238000,-508.0,9.38e-05,2]
[421460277,1777708238000,-2118.66704675,9.287e-05,2]
[421460289,1777708238000,-816.56559636,9.287e-05,2]
[421460291,1777708238000,-302.0,9.287e-05,2]
[421460298,1777708238000,-300.0,9.38e-05,2]
[421460294,1777708238000,-1200.0,9.379e-05,2]
[421460300,1777708238000,-305.50102383,9.523e-05,2]
[421460302,1777708238000,-569.60151256,9.569e-05,2]
[421460315,1777708238000,-360.49120812,0.00011523,2]
[421460306,1777708238000,-14534.2150548,0.00010273,2]
[421460316,1777708238000,-151.0,0.00011524,2]
[421460313,1777708238000,-587.0,0.0001135,2]
[421460309,1777708238000,-420.0,0.00010318,2]
[421460311,1777708238000,-500.0,0.00011,2]
[421460308,1777708238000,-1375.0,0.00010317,2]
[421460304,1777708238000,-3517.79706928,0.00010059,2]
[421460340,1777708239000,-151.0,0.00011695,2]
[421460329,1777708239000,-537.6845,0.00011585,2]
[421460324,1777708239000,-243.74791252,0.00011585,2]
[421460328,1777708239000,-163.10466013,0.00011585,2]
[421460336,1777708239000,-2030.296672,0.0001164,2]
[421460334,1777708239000,-151.0,0.0001164,2]
[421460335,1777708239000,-151.32743,0.0001164,2]
[421460333,1777708239000,-151.0,0.0001164,2]
[421460330,1777708239000,-151.0,0.00011585,2]
[421460331,1777708239000,-2150.738,0.00011585,2]
[421460327,1777708239000,-151.0,0.00011585,2]
[421460322,1777708239000,-445.202766,0.00011585,2]
[421460326,1777708239000,-537.6845,0.00011585,2]
[421460332,1777708239000,-500.0,0.00011592,2]
[421460320,1777708239000,-7139.83497299,0.00011561,2]
[421460321,1777708239000,-500.0,0.00011585,2]
[421460319,1777708239000,-282.27296612,0.00011524,2]
[421460318,1777708239000,-151.0,0.00011524,2]
[421460317,1777708239000,-151.0,0.00011524,2]
[421460325,1777708239000,-1957.856,0.00011585,2]
[421460341,1777708239000,-2105.41764886,0.00011695,2]
[421460342,1777708239000,-578.20924308,0.00011695,2]
[421460344,1777708239000,-1962.87365851,0.0001175,2]
[421460339,1777708239000,-151.0,0.00011695,2]
[421460361,1777708239000,-964.08322075,0.00011915,2]
[421460359,1777708239000,-151.0,0.000119,2]
[421460350,1777708239000,-596.09182821,0.00011859,2]
[421460353,1777708239000,-1065.41661413,0.0001186,2]
[421460356,1777708239000,-644.79446246,0.0001186,2]
[421460358,1777708239000,-151.0,0.000119,2]
[421460349,1777708239000,-337.43848166,0.00011859,2]
[421460351,1777708239000,-151.0,0.0001186,2]
[421460354,1777708239000,-704.35548838,0.0001186,2]
[421460355,1777708239000,-578.10050138,0.0001186,2]
[421460357,1777708239000,-500.0,0.0001186,2]
[421460347,1777708239000,-2264.10087164,0.00011805,2]
[421460348,1777708239000,-621.78829552,0.00011805,2]
[421460346,1777708239000,-599.60298507,0.0001175,2]
[421460345,1777708239000,-220.44444336,0.0001175,2]
[421460337,1777708239000,-557.5788265,0.0001164,2]
[421460360,1777708239000,-151.0,0.000119,2]
[421460343,1777708239000,-455.7330147,0.00011735,2]
[421460338,1777708239000,-151.0,0.00011695,2]
[421460352,1777708239000,-151.0,0.0001186,2]
[421460386,1777708243000,-500.0,0.00011922,2]
[421460383,1777708243000,-668.65185757,0.00011915,2]
[421460382,1777708243000,-1470.66066949,0.00011915,2]
[421460384,1777708243000,-151.0,0.00011922,2]
[421460385,1777708243000,-151.0,0.00011922,2]
[421460388,1777708243000,-500.0,0.00011922,2]
[421460394,1777708243000,-500.0,0.00011922,2]
[421460387,1777708243000,-500.0,0.00011922,2]
[421460389,1777708243000,-500.0,0.00011922,2]
[421460392,1777708243000,-500.0,0.00011922,2]
[421460391,1777708243000,-500.0,0.00011922,2]
[421460395,1777708243000,-455.36425675,0.00011922,2]
[421460393,1777708243000,-500.0,0.00011922,2]
[421460390,1777708243000,-500.0,0.00011922,2]
[421460407,1777708244000,-156.92273008,0.00011922,2]
[421460406,1777708244000,-500.0,0.00011922,2]
[421460403,1777708244000,-500.0,0.00011922,2]
[421460405,1777708244000,-500.0,0.00011922,2]
[421460398,1777708244000,-151.5,0.00011922,2]
[421460399,1777708244000,-151.5,0.00011922,2]
[421460401,1777708244000,-233.23761265,0.00011922,2]
[421460413,1777708244000,-225.0,0.00011975,2]
[421460397,1777708244000,-411.99864511,0.00011922,2]
[421460402,1777708244000,-151.5,0.00011922,2]
[421460400,1777708244000,-151.5,0.00011922,2]
[421460404,1777708244000,-500.0,0.00011922,2]
[421460396,1777708244000,-500.0,0.00011922,2]
[421460408,1777708244000,-167.5092632,0.00011922,2]
[421460420,1777708244000,-5000.0,0.00011987,2]
[421460421,1777708244000,-5000.0,0.00011987,2]
[421460422,1777708244000,-1509.85051817,0.00011987,2]
[421460419,1777708244000,-155.13577,0.00011975,2]
[421460418,1777708244000,-151.0,0.00011975,2]
[421460417,1777708244000,-151.0,0.00011975,2]
[421460414,1777708244000,-4120.0,0.00011975,2]
[421460416,1777708244000,-151.0,0.00011975,2]
[421460409,1777708244000,-151.5,0.00011922,2]
[421460412,1777708244000,-1060.0,0.00011975,2]
[421460410,1777708244000,-2524.82941417,0.0001197,2]
[421460411,1777708244000,-693.3919763,0.0001197,2]
[421460415,1777708244000,-151.0,0.00011975,2]
[421460435,1777708247000,-10447.72808418,0.00012013,2]
[421460433,1777708247000,-160.0,0.00012,2]
[421460431,1777708247000,-5000.0,0.00011987,2]
[421460432,1777708247000,-159.00623615,0.00012,2]
[421460434,1777708247000,-207.33815117,0.00012012,2]
[421460430,1777708247000,-5000.0,0.00011987,2]
[421460428,1777708247000,-500.0,0.0001186,2]
[421460429,1777708247000,-3490.14948183,0.00011987,2]
[421460436,1777708297000,173.9395,0.00021917,120]
[421460438,1777708451000,10020.0,0.000219,120]
[421460440,1777708981000,2024.77510013,0.00021917,120]
[421460482,1777709431000,-492.0,0.0001055,2]
[421460485,1777709431000,-276.4430384,0.0001055,2]
[421460490,1777709431000,-1266.62879338,0.00010551,2]
[421460488,1777709431000,-291.5569616,0.0001055,2]
[421460499,1777709431000,-162.91780108,0.00010899,2]
[421460494,1777709431000,-162.91780108,0.00010572,2]
[421460501,1777709431000,-500.0,0.00011689,2]
[421460493,1777709431000,-3733.37120662,0.00010551,2]
[421460498,1777709431000,-310.96117919,0.00010767,2]
[421460496,1777709431000,-219.83929084,0.00010572,2]
[421460497,1777709431000,-162.60014945,0.00010658,2]
[421460495,1777709431000,-195.73294574,0.00010572,2]
[421460480,1777709431000,-300.0,0.0001055,2]
[421460500,1777709431000,-162.91780108,0.00011236,2]
[421460509,1777709431000,-500.0,0.00011812,2]
[421460503,1777709431000,-214.9756893,0.00011806,2]
[421460515,1777709431000,-500.0,0.00011812,2]
[421460516,1777709431000,-2021.34633353,0.00011813,2]
[421460502,1777709431000,-692.41439609,0.00011806,2]
[421460514,1777709431000,-500.0,0.00011812,2]
[421460510,1777709431000,-244.98568011,0.00011812,2]
[421460506,1777709431000,-2849.0,0.00011811,2]
[421460507,1777709431000,-211.39882301,0.00011812,2]
[421460505,1777709431000,-2150.738,0.00011806,2]
[421460511,1777709431000,-500.0,0.00011812,2]
[421460513,1777709431000,-500.0,0.00011812,2]
[421460512,1777709431000,-487.17214087,0.00011812,2]
[421460504,1777709431000,-322.7088107,0.00011806,2]
[421460508,1777709431000,-500.0,0.00011812,2]
[421460605,1777709440000,-5000.0,0.00011688,2]
[421460606,1777709440000,-4383.63209812,0.00011813,2]
[421460615,1777709443000,-1246.62269966,0.00011813,2]
[421460617,1777709443000,-4646.51303738,0.00011813,2]
[421460616,1777709443000,-2870.83816914,0.00011813,2]
[421460618,1777709443000,-760.69687761,0.00011813,2]
[421460625,1777709446000,-88778.53448977,0.00011813,2]
[421460626,1777709862000,427.2,0.00021917,120]
[421460658,1777710631000,-162.80853434,0.00010897,2]
[421460649,1777710631000,-285.94924944,0.00010365,2]
[421460648,1777710631000,-635.16775901,0.00010365,2]
[421460655,1777710631000,-4233.65860462,0.0001047,2]
[421460654,1777710631000,-766.34139538,0.0001047,2]
[421460652,1777710631000,-315.36195561,0.00010418,2]
[421460659,1777710631000,-500.0,0.00011443,2]
[421460656,1777710631000,-162.80853435,0.0001057,2]
[421460650,1777710631000,-1160.40461208,0.00010365,2]
[421460653,1777710631000,-1200.0,0.00010469,2]
[421460657,1777710631000,-219.76169991,0.0001057,2]
[421460651,1777710631000,-565.0,0.00010365,2]
[421460660,1777710632000,-249.44285335,0.00011612,2]
[421460661,1777710632000,-4821.1414463,0.00011613,2]
[421460668,1777710638000,-1323.81728379,0.00011497,2]
[421460690,1777710638000,-831.71238038,0.00011497,2]
[421460799,1777710640000,-1208.17225413,0.00011613,2]
[421460798,1777710640000,-2844.47033583,0.00011497,2]
[421460822,1777710643000,-5585.90380543,0.00011613,2]
[421460823,1777710643000,-4895.9349,0.00011613,2]
[421460834,1777710646000,-64384.96069837,0.00011613,2]
[421460835,1777710646000,-5604.75479566,0.00011613,2]
[421460833,1777710646000,-540.92371165,0.00011613,2]
[421460832,1777710646000,-337.2,0.00011613,2]
[421460830,1777710646000,-445.09445061,0.00011613,2]
[421460831,1777710646000,-7555.21288691,0.00011613,2]
[421460836,1777710647000,2902.8473405,0.0001,2]
[421460837,1777710649000,6826.41557122,7.6e-05,2]
[421460841,1777710664000,-7338.36934735,0.0001,2]
[421460840,1777710664000,-5000.0,9.9e-05,2]
[421460842,1777710664000,-1126.31004252,0.0001,10]
[421460843,1777710664000,-115535.32061013,0.00011613,2]
[421460852,1777711014000,2193.39443984,0.00021918,120]
[421460853,1777711046000,2500.0,0.00021918,120]
[421460869,1777711832000,-517.47468881,8.469e-05,2]
[421460898,1777711840000,-5000.0,8.555e-05,2]
[421460896,1777711840000,-5000.0,8.384e-05,2]
[421460897,1777711840000,-740.00572568,8.469e-05,2]
[421460901,1777711840000,-420.0,9.505e-05,2]
[421460902,1777711840000,-238.27,0.000101,2]
[421460900,1777711840000,-325.60433469,8.642e-05,2]
[421460899,1777711840000,-300.0,8.641e-05,2]
[421460903,1777711840000,-384.21311494,0.00010642,2]
[421460908,1777711840000,-14071.28830435,0.00011311,2]
[421460905,1777711840000,-675.71149631,0.00011052,2]
[421460907,1777711840000,-1278.74598074,0.00011234,2]
[421460904,1777711840000,-500.0,0.0001088,2]
[421460910,1777711840000,-1532.90452827,0.00011311,2]
[421460906,1777711840000,-5016.74592153,0.00011221,2]
[421460926,1777711843000,-8806.98300026,0.00011311,2]
[421460928,1777711843000,-5064.92389278,0.00011311,2]
[421460927,1777711843000,-427.77401337,0.00011311,2]
[421460930,1777711843000,-857.52287274,0.00011311,2]
[421460929,1777711843000,-1826.03086402,0.00011311,2]
[421461016,1777711846000,-221.316151,0.0001141,2]